fUSD/lending_fUSD_20260118
["ID","MTS","AMOUNT","RATE_DAILY","PERIOD"]
[402641733,1768737039253,-500.0,0.00016438,2]
[402641734,1768737039262,-500.0,0.00016438,2]
[402641735,1768737039271,-600.0,0.00016438,2]
[402641736,1768737039279,-402.24780221,0.00016444,2]
[402641737,1768737039289,-3246.43784838,0.00016455,2]
[402641738,1768737039304,-1943.54357268,0.00016455,2]
[402641739,1768737039319,-150.0,0.00016457,2]
[402641740,1768737039329,-502.0,0.00016466,2]
[402641741,1768737039339,-500.0,0.00016473,2]
[402641742,1768737039349,-500.0,0.00016473,2]
[402641743,1768737039359,-500.0,0.00016473,2]
[402641744,1768737039368,-500.0,0.00016473,2]
[402641745,1768737039377,-500.0,0.00016473,2]
[402641746,1768737039388,-500.0,0.00016473,2]
[402641747,1768737039398,-500.0,0.00016473,2]
[402641748,1768737039407,-500.0,0.00016473,2]
[402641749,1768737039417,-500.0,0.00016473,2]
[402641750,1768737039427,-500.0,0.00016473,2]
[402641751,1768737039438,-500.0,0.00016473,2]
[402641752,1768737039450,-500.0,0.00016473,2]
[402641753,1768737039462,-500.0,0.00016473,2]
[402641754,1768737039472,-500.0,0.00016473,2]
[402641755,1768737039482,-500.0,0.00016473,2]
[402641756,1768737039492,-500.0,0.00016473,2]
[402641757,1768737039501,-500.0,0.00016473,2]
[402641758,1768737039511,-500.0,0.00016473,2]
[402641759,1768737039520,-500.0,0.00016473,2]
[402641760,1768737039530,-500.0,0.00016473,2]
[402641761,1768737039539,-500.0,0.00016473,2]
[402641762,1768737039549,-500.0,0.00016473,2]
[402641763,1768737039559,-500.0,0.00016473,2]
[402641764,1768737039568,-500.0,0.00016473,2]
[402641765,1768737039578,-500.0,0.00016473,2]
[402641766,1768737039587,-500.0,0.00016473,2]
[402641767,1768737039597,-518.62251149,0.00016473,2]
[402641768,1768737039607,-500.0,0.00016473,2]
[402641769,1768737039617,-500.0,0.00016473,2]
[402641770,1768737039628,-508.72192714,0.00016499,2]
[402641771,1768737039637,-1000.0,0.00016499,2]
[402641772,1768737039646,-1000.0,0.00016499,2]
[402641773,1768737039656,-1000.0,0.00016499,2]
[402641774,1768737039665,-500.0,0.00016499,2]
[402641775,1768737039674,-500.0,0.00016499,2]
[402641776,1768737039684,-502.89153827,0.00016499,2]
[402641777,1768737039693,-500.0,0.00016499,2]
[402641778,1768737039703,-166.66,0.00016569,2]
[402641779,1768737039712,-150.43904177,0.00016583,2]
[402641780,1768737039721,-3246.43784838,0.00016635,2]
[402641781,1768737039731,-1943.54357268,0.00016635,2]
[402641782,1768737039740,-1694.69,0.00016642,2]
[402641783,1768737039750,-151.1,0.00016647,2]
[402641784,1768737039759,-600.0,0.00016712,2]
[402641785,1768737039768,-166.27,0.00016712,2]
[402641786,1768737039778,-150.0,0.00016714,2]
[402641787,1768737039787,-1119.5977925,0.00016768,2]
[402641788,1768737039796,-151.1,0.0001677,2]
[402641789,1768737039806,-150.0,0.000168,2]
[402641790,1768737039815,-3246.43784838,0.00016816,2]
[402641791,1768737039826,-1943.54357268,0.00016816,2]
[402641792,1768737039835,-150.43904177,0.00016846,2]
[402641793,1768737039845,-151.1,0.00016893,2]
[402641794,1768737039859,-159.98,0.00016897,2]
[402641795,1768737039871,-1694.69,0.00016916,2]
[402641796,1768737039880,-150.0,0.00016971,2]
[402641797,1768737039889,-600.0,0.00016986,2]
[402641798,1768737039906,-3246.43784838,0.00016997,2]
[402641799,1768737039919,-1943.54357268,0.00016997,2]
[402641800,1768737039933,-250.0,0.00017,2]
[402641801,1768737039948,-3111.86878285,0.00017,2]
[402641802,1768737039962,-151.1,0.00017016,2]
[402641803,1768737039972,-1000.0,0.00017021,2]
[402641804,1768737039984,-1000.0,0.00017021,2]
[402641805,1768737039995,-1000.0,0.00017021,2]
[402641806,1768737040005,-1000.0,0.00017021,2]
[402641807,1768737040015,-1000.0,0.00017021,2]
[402641808,1768737040026,-1000.0,0.00017021,2]
[402641810,1768737040035,-1000.0,0.00017021,2]
[402641811,1768737040048,-1000.0,0.00017021,2]
[402641812,1768737040058,-1000.0,0.00017021,2]
[402641813,1768737040069,-1000.0,0.00017021,2]
[402641814,1768737040081,-1000.0,0.00017021,2]
[402641815,1768737040092,-1000.0,0.00017021,2]
[402641816,1768737040105,-1000.0,0.00017021,2]
[402641817,1768737040114,-1000.0,0.00017021,2]
[402641818,1768737040123,-1000.0,0.00017021,2]
[402641819,1768737040132,-1000.0,0.00017021,2]
[402641820,1768737040141,-1000.0,0.00017021,2]
[402641821,1768737040150,-898.80157031,0.00017021,2]
[402641822,1768737040159,-1074.55972892,0.00017021,2]
[402641823,1768737040169,-1000.0,0.00017021,2]
[402641824,1768737040178,-782.54716323,0.00017021,2]
[402641825,1768737040187,-504.10053469,0.00017021,2]
[402641826,1768737040196,-1000.0,0.00017021,2]
[402641827,1768737040205,-1000.0,0.00017021,2]
[402641828,1768737040215,-1000.0,0.00017021,2]
[402641829,1768737040225,-1000.0,0.00017021,2]
[402641830,1768737040235,-1000.0,0.00017021,2]
[402641831,1768737040260,-1000.0,0.00017021,2]
[402641832,1768737040269,-164.80317581,0.00017087,2]
[402641833,1768737040279,-4001.0,0.00017097,2]
[402641834,1768737040288,-293.66688877,0.00017097,2]
[402641835,1768737040298,-574.12855637,0.00017097,2]
[402641836,1768737040307,-166.66,0.00017099,2]
[402641837,1768737040317,-150.0,0.000171,2]
[402641838,1768737040326,-150.0,0.000171,2]
[402641839,1768737040336,-761.65,0.00017107,2]
[402641840,1768737040345,-150.43904177,0.0001711,2]
[402641841,1768737040354,-164.45281015,0.0001713,2]
[402641842,1768737040364,-151.1,0.00017139,2]
[402641843,1768737040373,-3246.43784838,0.00017177,2]
[402641844,1768737040382,-1943.54357268,0.00017177,2]
[402641845,1768737040391,-1694.69,0.0001719,2]
[402641846,1768737040400,-1680.0,0.00017226,2]
[402641847,1768737040409,-150.0,0.00017229,2]
[402641848,1768737040419,-600.0,0.0001726,2]
[402641849,1768737040427,-600.0,0.0001726,2]
[402641850,1768737040436,-150.0,0.0001726,2]
[402641851,1768737040445,-1000.0,0.0001726,2]
[402641852,1768737040454,-151.1,0.00017262,2]
[402641853,1768737040463,-1042.23183398,0.00017304,2]
[402641854,1768737040473,-3246.43784838,0.00017358,2]
[402641855,1768737040482,-1943.54357268,0.00017358,2]
[402641856,1768737040492,-150.43904177,0.00017373,2]
[402641857,1768737040502,-761.65,0.00017381,2]
[402641858,1768737040511,-151.1,0.00017385,2]
[402641859,1768737040521,-150.0,0.000174,2]
[402641860,1768737040531,-150.0,0.00017404,2]
[402641861,1768737040541,-1694.69,0.00017464,2]
[402641862,1768737040551,-150.0,0.00017486,2]
[402641863,1768737040560,-151.1,0.00017508,2]
[402641864,1768737040571,-600.0,0.00017534,2]
[402641865,1768737040580,-600.0,0.00017534,2]
[402641866,1768737040590,-1000.0,0.00017534,2]
[402641867,1768737040600,-3246.43784838,0.00017539,2]
[402641868,1768737040610,-1943.54357268,0.00017539,2]
[402641869,1768737040619,-150.0,0.0001754,2]
[402641870,1768737040629,-186.60912116,0.00017543,2]
[402641871,1768737040639,-511.15337826,0.00017543,2]
[402641872,1768737040648,-507.31602648,0.00017543,2]
[402641873,1768737040658,-500.0,0.00017543,2]
[402641874,1768737040668,-6898.1368,0.00017559,2]
[402641875,1768737040677,-615.0,0.00017565,2]
[402641876,1768737040687,-3473.0,0.00017565,2]
[402641877,1768737040696,-1354.189,0.00017565,2]
[402641878,1768737040706,-1407.0,0.00017565,2]
[402641879,1768737040715,-412.0,0.00017565,2]
[402641880,1768737040725,-1268.0,0.00017565,2]
[402641881,1768737040735,-569.897,0.00017565,2]
[402641882,1768737040744,-2305.88502078,0.00017565,2]
[402641883,1768737040759,-424.42001937,0.00017565,2]
[402641884,1768737040770,-2888.17197887,0.00017565,2]
[402641885,1768737040782,-943.52298098,0.00017565,2]
[402641886,1768737040792,-620.0944723,0.00017565,2]
[402641887,1768737040804,-1362.74,0.00017565,2]
[402641888,1768737040815,-260.25,0.00017565,2]
[402641889,1768737040826,-195.9155277,0.00017565,2]
[402641890,1768737040834,-1500.0,0.00017568,2]
[402641891,1768737040843,-500.0,0.00017568,2]
[402641892,1768737040852,-1005.48964317,0.00017568,2]
[402641893,1768737040862,-1500.0,0.00017568,2]
[402641894,1768737040871,-630.30097829,0.00017568,2]
[402641895,1768737040880,-1500.0,0.00017568,2]
[402641896,1768737040889,-1500.0,0.00017568,2]
[402641897,1768737040899,-1500.0,0.00017568,2]
[402641898,1768737040906,-484.63665662,0.00017568,2]
[402641899,1768737040915,-1015.36334338,0.00017568,2]
[402641900,1768737040922,-622.45048123,0.00017568,2]
[402641901,1768737040930,-1500.0,0.00017568,2]
[402641902,1768737040939,-1500.0,0.00017568,2]
[402641903,1768737040947,-363.75080239,0.00017568,2]
[402641904,1768737040954,-500.0,0.00017568,2]
[402641905,1768737040962,-440.38824472,0.00017568,2]
[402641906,1768737040973,-500.0,0.00017568,2]
[402641907,1768737040983,-373.13604917,0.00017568,2]
[402641908,1768737040992,-1500.0,0.00017568,2]
[402641909,1768737041002,-500.0,0.00017568,2]
[402641910,1768737041012,-500.0,0.00017568,2]
[402641911,1768737041022,-1000.0,0.00017568,2]
[402641912,1768737041031,-1500.0,0.00017568,2]
[402641913,1768737041040,-1000.0,0.00017568,2]
[402641914,1768737041050,-1500.0,0.00017568,2]
[402641915,1768737041059,-150.0,0.00017579,2]
[402641916,1768737041067,-166.66,0.00017628,2]
[402641917,1768737041076,-151.1,0.00017631,2]
[402641918,1768737041085,-150.43904177,0.00017637,2]
[402641919,1768737041095,-6383.74894756,0.0001764,2]
[402641920,1768737041105,-595.37131296,0.00017645,2]
[402641921,1768737041114,-761.65,0.00017655,2]
[402641922,1768737041123,-442.47,0.00017662,2]
[402641923,1768737041132,-500.0,0.00017699,2]
[402641924,1768737041141,-500.0,0.00017699,2]
[402641925,1768737041150,-302.38713635,0.00017719,2]
[402641926,1768737041173,-477.01024154,0.00017719,2]
[402641927,1768737041184,-2467.04047049,0.00017719,2]
[402641928,1768737041193,-1943.54357268,0.00017719,2]
[402641929,1768737041212,-1694.69,0.00017738,2]
[402641930,1768737041221,-150.0,0.00017743,2]
[402641931,1768737041231,-500.0,0.00017754,2]
[402641932,1768737041242,-500.0,0.00017754,2]
[402641933,1768737041251,-151.1,0.00017754,2]
[402641935,1768737041261,-2000.0,0.000178,2]
[402641937,1768737041268,-126.7986232,0.00017804,2]
[402641938,1768737041277,-468.26204421,0.00017804,2]
[402641939,1768737041659,-481.57727047,0.00017804,2]
[402641940,1768737041670,-405.28705655,0.00017804,2]
[402641941,1768737041681,-535.85788251,0.00017804,2]
[402641942,1768737042033,-732.68342266,0.00017804,2]
[402641943,1768737042042,-4852.14857568,0.00017804,2]
[402641944,1768737042051,-7258.52408127,0.00017804,2]
[402641945,1768737042060,-9821.0376,0.00017804,2]
[402641946,1768737042070,-6419.9340803,0.00017808,3]
[402641947,1768737042079,-500.0,0.00017808,2]
[402641948,1768737042088,-600.0,0.00017808,2]
[402641949,1768737042097,-600.0,0.00017808,2]
[402641950,1768737042106,-250.0,0.00017808,2]
[402641951,1768737042116,-1000.0,0.00017808,2]
[402641952,1768737042124,-500.0,0.00017809,2]
[402641953,1768737042133,-500.0,0.00017809,2]
[402641954,1768737042142,-193.31018197,0.00017818,2]
[402641955,1768737042159,-500.0,0.0001782,2]
[402641956,1768737042168,-551.14146089,0.0001782,2]
[402641957,1768737042176,-370.37036,0.0001782,2]
[402641958,1768737042186,-370.37037,0.0001782,2]
[402641959,1768737042195,-159.98,0.00017835,2]
[402641960,1768737042203,-5888.0,0.00017839,2]
[402641961,1768737042212,-200.0,0.00017856,2]
[402641962,1768737042222,-561.57476252,0.00017863,2]
[402641963,1768737042230,-500.0,0.00017863,2]
[402641964,1768737042239,-500.0,0.00017863,2]
[402641965,1768737042248,-5800.0,0.00017874,2]
[402641966,1768737042258,-151.1,0.00017877,2]
[402641967,1768737042267,-5800.0,0.00017883,2]
[402641968,1768737042275,-3332.72141377,0.00017891,2]
[402641969,1768737042316,-330.0,0.00017891,2]
[402641970,1768737042326,-463.67418489,0.00017891,2]
[402641971,1768737042341,-1673.60440134,0.00017891,2]
[402641972,1768737042350,-500.0,0.00017899,2]
[402641973,1768737042359,-500.0,0.00017899,2]
[402641974,1768737042368,-500.0,0.00017899,2]
[402641975,1768737042377,-163.01900719,0.00017899,2]
[402641976,1768737042388,-336.98099281,0.00017899,2]
[402641977,1768737042397,-214.03807997,0.00017899,2]
[402641978,1768737042405,-5800.0,0.000179,2]
[402641979,1768737042412,-150.43904177,0.000179,2]
[402641980,1768737042419,-10000.0,0.000179,2]
[402641981,1768737042427,-1688.0063006,0.000179,2]
[402641982,1768737042434,-307.73291253,0.000179,2]
[402641983,1768737042443,-307.73291253,0.000179,2]
[402641984,1768737042450,-307.73291253,0.000179,2]
[402641985,1768737042456,-307.73291253,0.000179,2]
[402641986,1768737042464,-3246.43784838,0.000179,2]
[402641987,1768737042471,-1943.54357268,0.000179,2]
[402641988,1768737042479,-164.80317581,0.000179,2]
[402641989,1768737042487,-2480.83969998,0.000179,2]
[402641990,1768737042493,-1249.39886294,0.000179,2]
[402641991,1768737042500,-3092.052693,0.000179,2]
[402641992,1768737042508,-211.61539095,0.000179,3]
[402641993,1768737042515,-829.5534708,0.000179,2]
[402641994,1768737042521,-500.0,0.000179,2]
[402641995,1768737042528,-500.0,0.000179,2]
[402641996,1768737042535,-500.0,0.000179,2]
[402641997,1768737042543,-500.0,0.000179,2]
[402641998,1768737042552,-500.0,0.000179,2]
[402641999,1768737042560,-500.0,0.000179,2]
[402642000,1768737042569,-4433.0,0.000179,2]
[402642001,1768737042578,-500.0,0.00017918,2]
[402642002,1768737042587,-500.0,0.00017918,2]
[402642003,1768737042596,-761.65,0.00017929,2]
[402642004,1768737042606,-661.50728786,0.0001797,2]
[402642005,1768737042614,-765.0,0.00017973,2]
[402642006,1768737042623,-500.0,0.00017973,2]
[402642007,1768737042632,-500.0,0.00017973,2]
[402642008,1768737042641,-150.0,0.00017973,2]
[402642009,1768737042649,-155.6514004,0.0001799,2]
[402642010,1768737042657,-155.6514004,0.0001799,2]
[402642011,1768737042666,-155.6514004,0.0001799,2]
[402642012,1768737042675,-500.0,0.00017991,2]
[402642013,1768737042684,-179.37709203,0.00017991,2]
[402642014,1768737042692,-608.61424855,0.00017996,2]
[402642015,1768737042701,-29214.7655885,0.00017997,2]
[402642016,1768737042710,-397884.8636031,0.00017997,2]
[402642017,1768737042725,-9975.1980176,0.00017997,2]
[402642018,1768737042733,-903.5472493,0.00017997,2]
[402642019,1768737042740,-567.8712304,0.00017999,2]
[402642020,1768737042747,-261.35951101,0.00017999,2]
[402642021,1768737042753,-155.0,0.00017999,2]
[402642022,1768737042762,-300.0,0.00017999,2]
[402642023,1768737042773,-300.0,0.00017999,2]
[402642024,1768737042782,-300.0,0.00017999,2]
[402642025,1768737042791,-666.0,0.00017999,2]
[402642026,1768737042800,-300.0,0.00017999,2]
[402642027,1768737042809,-666.0,0.00017999,2]
[402642028,1768737042817,-150.0,0.00018,2]
[402642029,1768737042826,-150.0,0.00018,2]
[402642030,1768737042835,-150.0,0.00018,2]
[402642031,1768737042844,-236.45405301,0.00018,2]
[402642032,1768737042852,-150.0,0.00018,2]
[402642033,1768737042861,-265.5663701,0.00018,2]
[402642034,1768737042869,-1002.61682753,0.00018,2]
[402642035,1768737042879,-1319558.03867612,0.00018,2]
[402642036,1768737042888,-795654.27795978,0.00018,2]
[402642038,1768737043264,-1359.71344481,0.00018,2]
[402642039,1768737043297,-2253163.19624599,0.00018,2]
[402642040,1768737043307,-472375.70274016,0.00018,2]
[402642041,1768737043317,-1841789.57243787,0.00018,2]
[402642042,1768737043326,-1189.57128759,0.00018,2]
[402642043,1768737043334,-2000.0,0.00018,2]
[402642044,1768737043343,-2000.0,0.00018,2]
[402642045,1768737043352,-1037943.36959863,0.00018,2]
[402642046,1768737043362,-9347.2832205,0.00018,2]
[402642047,1768737043378,-1690.66002,0.00018,2]
[402642048,1768737043389,-918.085566,0.00018,2]
[402642049,1768737043400,-727.40483639,0.00018,2]
[402642050,1768737043411,-19401.56307888,0.00018,2]
[402642051,1768737043446,-273.47278806,0.00018,2]
[402642052,1768737044171,-637.41718911,0.00018,2]
[402642053,1768737044182,-1796.97144954,0.00018,2]
[402642054,1768737044193,-1500.0,0.00018,2]
[402642055,1768737044550,-343.35232623,0.00018,2]
[402642056,1768737044561,-286.28539746,0.00018,2]
[402642057,1768737046223,-2000.0,0.00017565,2]
[402642058,1768737046277,-2692.65315691,0.00017565,2]
[402642125,1768737930585,-160.09387986,0.0001369,2]
[402642126,1768737932654,-102.90612014,0.0001369,2]
[402642127,1768737932676,-157.24334735,0.0001369,2]
[402642128,1768737936102,-411.80815163,0.0001369,2]
[402642129,1768737973598,163.0,0.000273,120]
[402642135,1768738160112,-690.21850102,0.0001369,2]
[402642136,1768738160132,-250.0,0.0001506,2]
[402642137,1768738160152,-223.77462135,0.00015474,2]
[402642138,1768738160172,-200.0,0.00015574,2]
[402642139,1768738160192,-1200.0,0.00015672,2]
[402642140,1768738160213,-300.0,0.00015672,2]
[402642141,1768738160232,-500.0,0.00015673,2]
[402642142,1768738160251,-501.01001678,0.00015673,2]
[402642143,1768738160271,-503.71984684,0.00015673,2]
[402642144,1768738160291,-500.41908961,0.00015673,2]
[402642145,1768738160310,-500.0,0.00015673,2]
[402642146,1768738160329,-24.9564804,0.00015673,2]
[402642148,1768738232263,-475.0435196,0.00015673,2]
[402642150,1768738232273,-281.0,0.00015673,2]
[402642152,1768738232282,-164.80317581,0.00015873,2]
[402642154,1768738232291,-11.93595103,0.00015968,2]
[402642156,1768738232316,-288.06404897,0.00015968,2]
[402642157,1768738232326,-146.51318765,0.00015968,2]
[402642158,1768738232389,-1039.00956503,0.00015968,2]
[402642159,1768738232405,-14.47724732,0.00015968,2]
[402642160,1768738232415,-4915.3523789,0.00015969,2]
[402642161,1768738232424,-3965.10157834,0.00015969,2]
[402642162,1768738232433,-157.54235243,0.0001597,2]
[402642163,1768738232443,-500.0,0.0001597,2]
[402642164,1768738232452,-342.72678102,0.0001597,2]
[402642165,1768738232461,-472.13852399,0.0001597,2]
[402642166,1768738232471,-500.0,0.0001597,2]
[402642167,1768738232480,-500.0,0.0001597,2]
[402642168,1768738232489,-500.0,0.0001597,2]
[402642169,1768738232499,-500.0,0.0001597,2]
[402642170,1768738232508,-500.0,0.0001597,2]
[402642171,1768738232517,-500.0,0.0001597,2]
[402642172,1768738232527,-500.0,0.0001597,2]
[402642173,1768738232537,-178.1937909,0.0001597,2]
[402642174,1768738232548,-321.8062091,0.0001597,2]
[402642175,1768738232558,-27.36664376,0.0001597,2]
[402642176,1768738232578,-472.63335624,0.0001597,2]
[402642177,1768738232587,-500.0,0.0001597,2]
[402642178,1768738232596,-500.0,0.0001597,2]
[402642179,1768738232605,-500.0,0.0001597,2]
[402642180,1768738232615,-500.0,0.0001597,2]
[402642181,1768738232624,-500.0,0.0001597,2]
[402642182,1768738232634,-500.0,0.0001597,2]
[402642183,1768738232643,-500.0,0.0001597,2]
[402642184,1768738232652,-500.0,0.0001597,2]
[402642185,1768738232661,-500.0,0.0001597,2]
[402642186,1768738232670,-500.0,0.0001597,2]
[402642187,1768738232680,-500.0,0.0001597,2]
[402642188,1768738232689,-500.0,0.0001597,2]
[402642189,1768738232698,-500.0,0.0001597,2]
[402642190,1768738232708,-500.0,0.0001597,2]
[402642191,1768738232717,-500.0,0.0001597,2]
[402642192,1768738232726,-500.0,0.0001597,2]
[402642193,1768738232736,-500.0,0.0001597,2]
[402642194,1768738232745,-500.0,0.0001597,2]
[402642195,1768738232754,-500.0,0.0001597,2]
[402642196,1768738232764,-500.0,0.0001597,2]
[402642197,1768738232773,-500.0,0.0001597,2]
[402642198,1768738232782,-500.0,0.0001597,2]
[402642199,1768738232792,-500.0,0.0001597,2]
[402642200,1768738232801,-500.0,0.0001597,2]
[402642201,1768738232810,-500.0,0.0001597,2]
[402642202,1768738232820,-500.0,0.0001597,2]
[402642203,1768738232829,-3562.91162711,0.00015971,2]
[402642204,1768738232840,-259.85,0.00015971,2]
[402642205,1768738232859,-656.09435565,0.00015971,2]
[402642214,1768738238397,-2594.00113,0.00015971,2]
[402642215,1768738238439,-1159.41324796,0.00015971,2]
[402642372,1768738240767,-670753.97483928,0.00015971,2]
[402642373,1768738240777,-304.23142224,0.00015973,2]
[402642374,1768738240786,-151.0,0.00016014,2]
[402642375,1768738240795,-1181.27542194,0.000161,2]
[402642376,1768738240805,-783.82776709,0.000161,2]
[402642377,1768738240814,-150.43904177,0.00016138,2]
[402642378,1768738240823,-273.585,0.00016171,2]
[402642379,1768738240832,-608.61424855,0.00016172,2]
[402642380,1768738240842,-500.0,0.00016172,2]
[402642381,1768738240851,-500.0,0.00016172,2]
[402642382,1768738240861,-500.0,0.00016172,2]
[402642383,1768738240870,-500.0,0.00016172,2]
[402642384,1768738240879,-500.0,0.00016172,2]
[402642385,1768738240888,-179.37709203,0.00016172,2]
[402642386,1768738240897,-500.0,0.00016172,2]
[402642387,1768738240907,-150.0,0.000162,2]
[402642388,1768738240916,-150.0,0.000162,2]
[402642389,1768738240925,-150.0,0.000162,2]
[402642390,1768738240935,-265.56637009,0.000162,2]
[402642391,1768738240944,-236.45405301,0.000162,2]
[402642392,1768738240953,-150.0,0.000162,2]
[402642393,1768738240962,-639.52,0.00016254,2]
[402642394,1768738240972,-1181.27542192,0.000163,2]
[402642395,1768738240980,-783.82776706,0.000163,2]
[402642396,1768738240990,-551.01907278,0.00016372,2]
[402642397,1768738240999,-833.0,0.000164,2]
[402642398,1768738241009,-747.61,0.00016429,2]
[402642399,1768738241023,-500.0,0.00016438,2]
[402642400,1768738241032,-500.0,0.00016438,2]
[402642401,1768738241042,-500.0,0.00016438,2]
[402642402,1768738241052,-500.0,0.00016438,2]
[402642403,1768738241062,-500.0,0.00016438,2]
[402642404,1768738241072,-500.0,0.00016438,2]
[402642405,1768738241082,-500.0,0.00016438,2]
[402642406,1768738241092,-500.0,0.00016438,2]
[402642407,1768738241104,-500.0,0.00016438,2]
[402642408,1768738241115,-500.0,0.00016438,2]
[402642409,1768738241125,-500.0,0.00016438,2]
[402642410,1768738241135,-500.0,0.00016438,2]
[402642411,1768738241145,-404.31183971,0.00016438,2]
[402642412,1768738241156,-500.0,0.00016438,2]
[402642413,1768738241167,-500.0,0.00016438,2]
[402642414,1768738241177,-500.0,0.00016438,2]
[402642415,1768738241187,-500.0,0.00016438,2]
[402642416,1768738241197,-500.0,0.00016438,2]
[402642417,1768738241207,-500.0,0.00016438,2]
[402642418,1768738241221,-500.0,0.00016438,2]
[402642419,1768738241230,-500.0,0.00016438,2]
[402642420,1768738241240,-500.0,0.00016438,2]
[402642421,1768738241249,-500.0,0.00016438,2]
[402642422,1768738241260,-500.0,0.00016438,2]
[402642423,1768738241270,-500.0,0.00016438,2]
[402642424,1768738241279,-500.0,0.00016438,2]
[402642425,1768738241288,-600.0,0.00016438,2]
[402642426,1768738241298,-815.0,0.00016438,2]
[402642427,1768738241307,-200.0,0.0001645,2]
[402642428,1768738241316,-373.22,0.00016471,2]
[402642429,1768738241325,-237.81029679,0.00016473,2]
[402642430,1768738241336,-500.0,0.00016473,2]
[402642431,1768738241347,-500.0,0.00016473,2]
[402642432,1768738241357,-500.0,0.00016473,2]
[402642433,1768738241366,-500.0,0.00016473,2]
[402642434,1768738241375,-1181.27542192,0.000165,2]
[402642435,1768738241384,-783.82776706,0.000165,2]
[402642436,1768738241393,-3781.34,0.00016611,2]
[402642437,1768738241405,-1181.27542192,0.000167,2]
[402642438,1768738241414,-783.82776706,0.000167,2]
[402642439,1768738241424,-600.0,0.00016712,2]
[402642440,1768738241434,-500.0,0.00016777,2]
[402642441,1768738241443,-689.34,0.00016839,2]
[402642442,1768738241453,-1181.27542192,0.000169,2]
[402642443,1768738241463,-783.82776706,0.000169,2]
[402642444,1768738241472,-8759.91,0.00016922,5]
[402642445,1768738241482,-600.0,0.00016986,2]
[402642446,1768738241491,-250.0,0.00017,2]
[402642447,1768738241500,-500.0,0.00017,7]
[402642448,1768738241510,-500.0,0.00017,7]
[402642449,1768738241519,-500.0,0.00017,7]
[402642450,1768738241529,-500.0,0.00017,7]
[402642451,1768738241538,-500.0,0.00017,7]
[402642452,1768738241547,-1000.0,0.00017021,2]
[402642453,1768738241556,-1000.0,0.00017021,2]
[402642454,1768738241566,-1000.0,0.00017021,2]
[402642455,1768738241575,-1000.0,0.00017021,2]
[402642456,1768738241589,-639.52,0.00017067,2]
[402642457,1768738241599,-250.0,0.00017073,2]
[402642458,1768738241608,-373.22,0.00017089,2]
[402642459,1768738241619,-4001.0,0.00017099,2]
[402642460,1768738241629,-574.12855637,0.00017099,2]
[402642461,1768738241639,-1181.27542192,0.000171,2]
[402642462,1768738241648,-783.82776706,0.000171,2]
[402642463,1768738241657,-164.45281015,0.00017146,2]
[402642464,1768738241666,-150.0,0.00017189,2]
[402642465,1768738241675,-600.0,0.0001726,2]
[402642466,1768738241684,-150.0,0.0001726,2]
[402642467,1768738241694,-150.0,0.00017265,2]
[402642468,1768738241704,-3965.10157834,0.00017298,2]
[402642469,1768738241714,-1181.27542192,0.000173,2]
[402642470,1768738241724,-783.82776706,0.000173,2]
[402642471,1768738241733,-915.0,0.0001731,2]
[402642472,1768738241743,-1202.0,0.0001731,2]
[402642473,1768738241752,-420.0,0.00017459,2]
[402642474,1768738241762,-241.04166642,0.00017468,2]
[402642475,1768738241776,-150.0,0.0001748,2]
[402642476,1768738241785,-159.0,0.000175,2]